Cogmind - Beta 10.2 @@@ ROGUE MODE // 2021.01.12 @ 20:23:55 Player: Wyvric Result: Destroyed by S-10 Pest with Light Assault Rifle Performance ------------- Evolutions (0) 0 Regions Visited (2) 400 Robots Destroyed (20) 100 Value Destroyed (643) 643 Prototype IDs (0) 0 Alien Tech Used (0) 0 Bonus (0) 0 TOTAL SCORE: 1143 Bonus ------- None Cogmind --------- Core Integrity 0/250 Matter 236/300 Energy 100/100 System Corruption 0% Temperature Cool (0) Movement Rolling (80) Location -10/Mines Parts ------- > --- POWER (1) -------- (None) > --- PROPULSION (2) --- Wheel Wheel > --- UTILITY (2) ------ Large Storage Unit > --- WEAPON (2) ------- Light Assault Rifle > --- INVENTORY (10) --- Light Treads Aluminum Leg Improved Heat Sink Large Storage Unit Large Storage Unit Medium Laser Peak State ------------ > --- POWER ------------ Light Nuclear Core > --- PROPULSION ------- Aluminum Leg Aluminum Leg > --- UTILITY ---------- Large Storage Unit Light Armor Plating > --- WEAPON ----------- Medium Laser Medium Laser > --- INVENTORY -------- Light Treads Wheel Wheel Improved Heat Sink Large Storage Unit Large Storage Unit Light Armor Plating Medium Laser Light Assault Rifle Grenade Launcher [Rating: 10] Favorites ----------- Power Light Ion Engine Engine Light Ion Engine Power Core Light Nuclear Core Propulsion Aluminum Leg Treads Light Treads Leg Aluminum Leg Wheel Wheel Utility Large Storage Unit Storage Large Storage Unit Protection Light Armor Plating Weapon Light Assault Rifle Energy Gun Medium Laser Ballistic Gun Light Assault Rifle Launcher Grenade Launcher Build | -11 -10 -10 ------- Run | Scr Mat Min Slots Evolved . | . . . Power . | . . . Propulsion . | . . . Utility . | . . . Weapon . | . . . Parts Attached 34 | 8 15 11 Power 3 | 1 1 1 Engine 2 | 1 1 . Core 1 | . . 1 Reactor . | . . . Propulsion 11 | 4 4 3 Treads 5 | 2 2 1 Leg 4 | 2 2 . Wheel 2 | . . 2 Hover . | . . . Flight . | . . . Utility 9 | 1 6 2 Device . | . . . Storage 4 | 1 3 . Processor . | . . . Hackware . | . . . Protection 5 | . 3 2 Artifact . | . . . Weapon 11 | 2 4 5 Energy Gun 5 | 2 . 3 Energy Cannon . | . . . Ballistic Gun 4 | . 3 1 Ballistic Cannon . | . . . Launcher 2 | . 1 1 Special Weapon . | . . . Impact Weapon . | . . . Slashing Weapon . | . . . Piercing Weapon . | . . . Special Melee Weapon . | . . . Unidentified Prototypes . | . . . Parts Lost 10 | . 3 7 Power 1 | . . 1 Propulsion 2 | . 1 1 Utility 2 | . . 2 Weapon 5 | . 2 3 Highest Loss Streak 7 | . 2 7 Average Slot Usage (%) 96 | . 95 98 Engine 13 | . 14 12 Treads 12 | . 19 . Leg 14 | . 8 26 Storage 17 | . 19 14 Protection 7 | . 4 13 Energy Gun 12 | . 5 24 Ballistic Gun 14 | . 21 1 Naked Turns . | . . . Heaviest Build 39 | 10 39 37 Greatest Support 40 | 40 40 20 Greatest Overweight (x) 1 | 1 1 1 Average Overweight (x) . | . . . Largest Inventory Capacity 16 | 6 16 16 Average Capacity 9 | 5 10 10 Most Carried 15 | 6 15 15 Average Carried 8 | 3 8 9 Final Capacity 16 | 6 16 10 Final Carried 15 | 6 15 6 Class Distribution -------------------- 100% | Mutant Dominant Class ---------------- Mutant | -10/Materials Mutant | -10/Mines Resources | -11 -10 -10 ----------- Run | Scr Mat Min Matter Collected 537 | 210 155 172 Remotely . | . . . Salvage Created 570 | . 437 133 Parts 34 | . 29 5 Haulers Intercepted . | . . . Recyclers Shooed . | . . . Parts Field Recycled . | . . . Retrieved Matter . | . . . Parts Self-Destructed . | . . . Prevented . | . . . Kills | -11 -10 -10 ------- Run | Scr Mat Min Combat Hostiles Destroyed 18 | . 14 4 Guns 13 | . 10 3 AOE 5 | . 4 1 Classes Destroyed 5 | . 3 2 Builder 1 | . 1 . Tunneler 1 | . . 1 Swarmer 3 | . 3 . Grunt 14 | . 11 3 Demolisher 1 | . . 1 Best Kill Streak 4 | . 4 3 Combat Bots Only 4 | . 4 2 Max Kills in Single Turn 2 | . 2 2 Gunslinging . | . . . Exploded 2 | . 2 1 Melee . | . . . Uniques/NPCs Destroyed . | . . . Combat | -11 -10 -10 -------- Run | Scr Mat Min Damage Taken 1502 | . 626 876 Core 259 | . 128 131 Absorbed by Shields . | . . . Core Remaining (%) 100 | 100 . . Volleys Fired 47 | . 37 10 Largest 2 | . 2 2 Hottest 100 | . 90 100 Shots Fired 86 | . 70 16 Gun 79 | . 66 13 Cannon . | . . . Launcher 7 | . 4 3 Special . | . . . Kinetic 50 | . 50 . Thermal 29 | . 16 13 Explosive 7 | . 4 3 Electromagnetic . | . . . Robot Hit Streak 18 | . 18 5 Robot Miss Streak 2 | . 2 2 Penetration Max . | . . . Secondary Targets 3 | . 2 1 Max Gunslinging Chain 1 | . 1 1 Shots Hit Robots 65 | . 55 10 Core Hits 41 | . 32 9 Critical Hits . | . . . Critical Kills . | . . . Critical Parts Destroyed . | . . . Melee Attacks . | . . . Impact . | . . . Slashing . | . . . Piercing . | . . . Sneak Attacks . | . . . Combat Hostiles . | . . . Follow-up Attacks . | . . . Damage Inflicted 1019 | . 749 270 Guns 556 | . 443 113 Cannons . | . . . Explosions 431 | . 300 131 Melee . | . . . Ramming 32 | . 6 26 Kinetic 350 | . 350 . Thermal 206 | . 93 113 Explosive 431 | . 300 131 Electromagnetic . | . . . Impact . | . . . Slashing . | . . . Piercing . | . . . Highest Corruption . | . . . Average Corruption . | . . . Corruption Purged . | . . . Overload Shots . | . . . Overflow Damage 10 | . 10 . Projectiles . | . . . Explosions 10 | . 10 . Melee . | . . . Knockbacks . | . . . Impact . | . . . Kinetic . | . . . Secondary . | . . . Self-Inflicted Damage 29 | . 16 13 Shots 1 | . 1 . Rammed 5 | . 3 2 Targets Rammed 5 | . 3 2 Kicked . | . . . Crushed . | . . . Highest Temperature 235 | . 180 235 Average Temperature 75 | . 40 126 Received Heat Transfer 450 | . 225 225 Siege Activations . | . . . Robots Corrupted . | . . . Combat Hostiles . | . . . Parts Fried . | . . . Impact Corruptions . | . . . Robots Melted . | . . . Combat Hostiles . | . . . Parts Melted . | . . . Heat Transferred 581 | . 248 333 Parts Sabotaged . | . . . Parts Stolen . | . . . Parts Stripped . | . . . Power Chain Reactions . | . . . Missiles Intercepted . | . . . Alert | -11 -10 -10 ------- Run | Scr Mat Min Peak Influence 245 | . 245 80 Initial . | . . . Average 57 | . 90 8 Maximum Alert Level 1 | . 1 . Low Security (%) 88 | 100 81 100 Level 1 11 | . 18 . Level 2 . | . . . Level 3 . | . . . Level 4 . | . . . Level 5 . | . . . High Security . | . . . Max Security . | . . . Squads Dispatched 3 | . 3 . Investigation 2 | . 2 . Extermination . | . . . Reinforcement 1 | . 1 . Assault . | . . . Garrison . | . . . Intercept . | . . . Construction Impeded . | . . . Haulers Reinforced . | . . . Stealth | -11 -10 -10 --------- Run | Scr Mat Min Distress Signals 1 | . 1 . Communications Jammed . | . . . Distress Signals . | . . . Times Spotted 39 | . 28 11 Peak Tracking Total 6 | . 6 6 Tactical Retreats . | . . . Traps | -11 -10 -10 ------- Run | Scr Mat Min Traps Triggered 2 | . 2 . Indirectly . | . . . Trap Hack Attempts . | . . . Triggered . | . . . Disarmed . | . . . Reprogrammed . | . . . Reused . | . . . Traps Extracted . | . . . Installed . | . . . Triggered . | . . . Machines | -11 -10 -10 ---------- Run | Scr Mat Min Machines Disabled 2 | . 2 . Max in Single Turn 2 | . 2 . Machines Sabotaged . | . . . Garrisons Compromised . | . . . Overloaded Fab Kills . | . . . Fab Network Shutdowns . | . . . Hacking | -11 -10 -10 --------- Run | Scr Mat Min Machines Accessed 7 | . 7 . Terminals 6 | . 6 . Fabricators . | . . . Repair Stations . | . . . Recycling Units 1 | . 1 . Scanalyzers . | . . . Garrison Access . | . . . Total Hacks 16 | . 16 . Successful 5 | . 5 . Failed 11 | . 11 . Catastrophic 3 | . 3 . Database Lockouts . | . . . Manual 14 | . 14 . Terminals 13 | . 13 . Fabricators . | . . . Repair Stations . | . . . Recycling Units 3 | . 3 . Scanalyzers . | . . . Garrison Access . | . . . Terminal Hacks 3 | . 3 . Branch Access Points 1 | . 1 . Unreport Threat 2 | . 2 . Fabricator Hacks . | . . . Repair Station Hacks . | . . . Recycling Unit Hacks 1 | . 1 . Report Inventory 1 | . 1 . Scanalyzer . | . . . Garrison Access Hacks . | . . . Unauthorized Hacks 1 | . 1 . Terminals . | . . . Fabricators . | . . . Repair Stations . | . . . Recycling Units 1 | . 1 . Tunnel 1 | . 1 . Scanalyzers . | . . . Garrison Access . | . . . Data Cores Recovered . | . . . Used . | . . . Hacking Detections 5 | . 5 . Full Trace Events 1 | . 1 . Feedback Events . | . . . Feedback Blocked . | . . . Robot Schematics Acquired . | . . . Robots Built . | . . . Matter . | . . . Time . | . . . Total Robot Build Rating . | . . . Part Schematics Acquired . | . . . Parts Built . | . . . Matter . | . . . Time . | . . . Total Part Build Rating . | . . . Parts Repaired . | . . . Time . | . . . Parts Recycled . | . . . Recycled Matter . | . . . Retrieved Matter . | . . . Retrieved Components . | . . . Parts Scanalyzed . | . . . Part Schematics Acquired . | . . . Parts Damaged . | . . . Bothacking | -11 -10 -10 ------------ Run | Scr Mat Min Used RIF Installer . | . . . Robots Hacked . | . . . Non-combat . | . . . Combat . | . . . Robot Hacks Applied . | . . . Relay Couplers Released . | . . . Robots Rewired . | . . . Allies Hacked . | . . . Hacks Repelled . | . . . Allies | -11 -10 -10 -------- Run | Scr Mat Min Total Allies . | . . . Largest Group . | . . . Highest-Rated Group . | . . . Highest-Rated Ally . | . . . Total Orders . | . . . Ally Attacks . | . . . Total Damage . | . . . Kills . | . . . Allies Corrupted . | . . . Allies Melted . | . . . Intel | -11 -10 -10 ------- Run | Scr Mat Min Robot Analysis Total . | . . . Derelict Logs Recovered 1 | . . 1 Drone Launches . | . . . Drone Recoveries . | . . . Exploration | -11 -10 -10 ------------- Run | Scr Mat Min Turns Passed 1572 | 93 956 523 Spaces Moved 728 | 55 508 165 Core 4 | 4 . . Treads 325 | 29 296 . Legs 371 | 22 212 137 Wheels 28 | . . 28 Hover . | . . . Flight . | . . . Fastest Speed 50 | 50 120 80 Average Speed 145 | 136 148 138 Slowest Speed 160 | 160 160 150 Overloaded Moves . | . . . Propulsion Burnouts . | . . . Robots Hopped . | . . . Cave-ins Triggered . | . . . Exploration Rate (%) 49 | 6 98 43 Regions Visited 2 Branch Regions 1 Pre-discovered Areas 1 | . 1 . Known Exits Taken 1 | . 1 . Unknown Exits Taken 1 | 1 . . Scrap Searched 1 | . . 1 Spaces Dug . | . . . Terrain Destroyed 66 | . 51 15 Melee . | . . . Projectile . | . . . AOE 66 | . 51 15 Terrain Rammed . | . . . Walls Destroyed . | . . . Machines Disabled . | . . . Actions | -11 -10 -10 --------- Run | Scr Mat Min Total 1158 | 68 644 446 Wait 311 | . 64 247 Move 726 | 54 507 165 Hop . | . . . Pick Up 21 | 6 13 2 Fast Attach 12 | 6 5 1 Attach 9 | . 2 7 Detach 1 | . . 1 Swap 13 | 2 8 3 Drop 13 | . 5 8 Fire 47 | . 37 10 Melee . | . . . Ram 2 | . . 2 Kick . | . . . Crush 3 | . 3 . Escape Stasis . | . . . Rewire . | . . . Trap . | . . . Miscellaneous . | . . . Route ------- -11/Scrapyard -10/Materials (discovered 5 exits: [*Mat x3] / *Min x2) -10/Mines History --------- Turn | Location | Event 16 | -11/Scrapyard | Discovered new exit (range 15) 94 | -11/Scrapyard | Entered Materials 218 | -10/Materials | Discovered new exit (range 4) 306 | -10/Materials | Build established: Mutant 511 | -10/Materials | Discovered new exit (range 10) 835 | -10/Materials | Discovered new exit (range 13) 908 | -10/Materials | Core integrity fell below 50% 975 | -10/Materials | Discovered new exit (range 5) 1020 | -10/Materials | Discovered new exit (range 13) 1023 | -10/Materials | Identified exit to Mines 1050 | -10/Materials | Entered Mines 1051 | -10/Mines | Assembled infested the area 1056 | -10/Mines | Assisted by a Guerilla fighting off Assembled 1518 | -10/Mines | Learned Materials security intel 1541 | -10/Mines | Core integrity fell below 20% 1573 | -10/Mines | Destroyed by S-10 Pest with Light Assault Rifle Last Messages --------------- 01539_ U-05 Engineer builds a Wall. 01539_ G-47 Trooper destroyed. 01539_ T-07 Excavator destroyed. 01540_ K-01 Serf collects debris. 01541_ The unstable cave ceiling collapses. 01541_ Lgt. Nuclear Core destroyed. 01543_ U-05 Engineer lays Concrete. 01543_ K-01 Serf collects debris. 01544_ U-05 Engineer builds a Wall. 01545_ The unstable cave ceiling collapses. 01547_ K-01 Serf collects debris. 01549_ U-05 Engineer builds a Wall. 01550_ The unstable cave ceiling collapses. 01550_ Grenade Launcher destroyed. 01550_ K-01 Serf collects debris. 01551_ Slammed into U-05 Engineer. 01551_ Destabilizing: Core damaged (-2). 01552_ Slammed into U-05 Engineer. 01561_ Lgt. Armor Plating destroyed. 01565_ S-10 Pest destroyed. Map ----- +----------------------------------------------------+ | ???????????????????????????????????????? | | ???????????????????????????????????????? | | ???????????????????????????????????????? | | ???????????????????????????????????????? | | ???????????????????????????????????????? | | ???????????????????????????????????????? | | ???????????????????????????????????????? | | ????????????????????###????????????????? | | ??????? #?????????# ####?????????????? | | ????? ###????## ##????????????? | | ????? ###### #????????????? | | ????? ?????????????? | | ?????# ??????????????? | | ????## #??????????????? | | ???## #??????????????? | | ??## #??????###??????? | | ??? #??????# ##?????? | | ???? u #?????# ##????? | | ??????# ###### #????? | | ??????# ## #????? | | ????### #????? | | ???## s #????? | | ???# ## #????? | | ????# %= #### #?????? | | ????### #* ###??## #?????? | | ??????# ## ###?????## @ #????? | | ?###### #####????????#### t #????? | | ?# #????????????????# #????? | | ?# #######????????????????? ##????? | | ## ###?????????????????????? ###?????? | | # ####?????????????????????? #???????? | | # ##?????????????????????? #???????? | | #?????????????????????? #???????? | | #???????????????????????#???????? | | #???????????????????????????????? | | #???????????????????????????????? | | # ####???????????????????????????????? | | = ##???????????????????????????????? | | * # #???????????????????????????????? | | # ########????????????????????????? | | # #???????????????????????? | | ??????????????????????????? | | * ####?????????????????????????????? | | ##????????????????????????????????? | | % #?????????????????????????????????? | | * ##?????????????????????????????????? | | ####??????????????????????????????????? | | #??????????????????????????????????????? | | #??????????????????????????????????????? | | #??????????????????????????????????????? | +----------------------------------------------------+ Best States ------------- Heat Dissipation 25 Energy Generation 14 Energy Capacity 160 Matter Stores 300 Matter Capacity 300 Sight Range 16 Terrain Scan Density 10 Armor Coverage 150 Weapon Shielding 33 Evasion (%) 44 Recoil Reduction 2 Item Schematics ----------------- None Robot Schematics ------------------ None Fabricated ------------ Nothing Alien Tech Used ----------------- None Achievements -------------- None Challenges ------------ None Game ------ Seed VariableBiocellFilter Manual? 0 Play Time 00:15:01 Cumulative 136.7 hours Start 2021.01.12 @ 15:53:47 End 2021.01.12 @ 20:23:55 Sessions 2 Manual Loads 0 Difficulty Rogue Special Mode None Game No. 34 Rogue 34 Adventurer 0 Explorer 0 Win Type - Total 11 Types 6/2/1/1/1/0/0/0/0 Lore% 46 Gallery% 73 Achievement% 60 Wizard Run 0 Options --------- ASCII 0 Keyboard 0 Movement Numpad Keybinds 0 Fullscreen 1 Font 18/TerminusBold Map View 76x50 Tactical HUD 1 Map Filters NONE Filters NONE Steam 1 RUN: ea31e9f6-72e9-4144-b40e-5cc7860901e1